[Event "WYCC 2018 G14"]
[Site "Halkidiki"]
[Date "2018.10.27"]
[Round "8"]
[White "Velea, Anne-Marie"]
[Black "Alimova, Sevinch"]
[Result "1-0"]
[ECO "B44"]
[WhiteElo "1859"]
[BlackElo "1596"]
[Annotator "NA"]
[PlyCount "121"]
[EventDate "2018.10.20"]
[EventType "swiss"]
[EventCountry "GRE"]
[SourceTitle "playchess.com"]
[Source "ChessBase"]
[SourceQuality "1"]
[TimeControl "40/5400+30:1800+30"]

1. e4 {[%emt 0:00:00]} c5 {[%emt 0:00:00]} 2. Nf3 {[%emt 0:00:00]} e6 {[%emt 0:00:02]} 3. d4 {[%emt 0:00:00]} cxd4 {[%emt 0:00:15]} 4. Nxd4 {[%emt 0:00:00]} Nc6 {[%emt 0:00:08]} 5. Nxc6 {[%emt 0:00:20]} bxc6 {[%emt 0:00:18]} 6. Bd3 {[%emt 0:00:32]} d5 {[%emt 0:05:11]} 7. O-O {[%emt 0:02:47]} Nf6 {[%emt 0:06:26]} 8. Nd2 {[%emt 0:00:39]} Be7 {[%emt 0:02:08]} 9. b3 {[%emt 0:01:44]} a5 {[%emt 0:04:52]} 10. a4 {[%emt 0:07:05]} O-O {[%emt 0:02:41]} 11. Bb2 {[%emt 0:01:46]} Ba6 {[%emt 0:01:59]} 12. e5 {[%emt 0:16:05]} Nd7 {[%emt 0:05:59]} 13. Bxa6 {[%emt 0:01:20]} Rxa6 {[%emt 0:01:52]} 14. Qg4 {[%emt 0:04:11]} Re8 {[%emt 0:10:10]} 15. Rae1 {[%emt 0:05:51]} Bc5 {[%emt 0:06:16]} 16. Kh1 {[%emt 0:02:51]} Nf8 {[%emt 0:09:30]} 17. f4 {[%emt 0:02:13]} g6 {[%emt 0:07:06]} 18. Nf3 {[%emt 0:06:37]} Be7 {[%emt 0:03:50]} 19. Re2 {[%emt 0:09:11]} c5 {[%emt 0:02:52]} 20. h4 {[%emt 0:05:03]} f5 {[%emt 0:03:16]} 21. exf6 {[%emt 0:02:17]} Bxf6 {[%emt 0:00:25]} 22. Bxf6 {[%emt 0:02:13]} Qxf6 {[%emt 0:00:34]} 23. Ne5 {[%emt 0:01:45]} Qg7 {[%emt 0:12:53]} 24. Rfe1 {[%emt 0:05:32]} h5 {[%emt 0:05:15]} 25. Qh3 {[%emt 0:03:18]} d4 {[%emt 0:02:23]} 26. g4 {[%emt 0:01:34]} hxg4 {[%emt 0:01:59]} 27. Qxg4 {[%emt 0:00:20]} Re7 {[%emt 0:02:06]} 28. Rg2 {[%emt 0:02:08]} Kh7 {[%emt 0:01:18]} 29. Reg1 {[%emt 0:01:20]} Qh6 {[%emt 0:00:44]} 30. h5 {[%emt 0:08:26]} Rg7 {[%emt 0:00:57]} 31. Qh4 {[%emt 0:01:16]} Kh8 {[%emt 0:00:58]} 32. Nxg6+ {[%emt 0:01:31]} Nxg6 {[%emt 0:00:51]} 33. Rxg6 {[%emt 0:00:25]} Rxg6 {[%emt 0:00:26]} 34. Rxg6 {[%emt 0:00:34]} Qf8 {[%emt 0:00:17]} 35. Qg5 {[%emt 0:01:17]} Ra7 {[%emt 0:00:27]} 36. Rxe6 {[%emt 0:03:03]} Rg7 {[%emt 0:00:40]} 37. Rg6 {[%emt 0:00:54]} Rxg6 {[%emt 0:00:47]} 38. hxg6 {[%emt 0:00:08]} Kg7 {[%emt 0:00:31]} 39. f5 {[%emt 0:00:37]} Qa8+ {[%emt 0:00:31]} 40. Kg1 {[%emt 0:00:00]} Qf8 {[%emt 0:00:00]} 41. Qh5 {[%emt 0:01:16]} Qf6 {[%emt 0:01:30]} 42. Kf2 {[%emt 0:01:38]} Kf8 {[%emt 0:01:37]} 43. Qh6+ {[%emt 0:01:14]} Ke8 {[%emt 0:01:15]} 44. Qf4 {[%emt 0:00:21]} Kd7 {[%emt 0:00:29]} 45. Qg4 {[%emt 0:01:56]} Qe5 {[%emt 0:04:42]} 46. f6+ {[%emt 0:04:10]} Kd8 {[%emt 0:01:11]} 47. f7 {[%emt 0:06:22]} Qe3+ {[%emt 0:02:50]} 48. Kg2 {[%emt 0:00:26]} Qd2+ {[%emt 0:00:45]} 49. Kh3 {[%emt 0:00:54]} Qe3+ {[%emt 0:00:16]} 50. Qg3 {[%emt 0:01:40]} Qe6+ {[%emt 0:00:46]} 51. Kh4 {[%emt 0:00:38]} Qe4+ {[%emt 0:03:24]} 52. Kh5 {[%emt 0:00:26]} Qe2+ {[%emt 0:00:46]} 53. Kh6 {[%emt 0:00:15]} Ke7 {[%emt 0:01:03]} 54. Qc7+ {[%emt 0:00:51]} Ke6 {[%emt 0:01:11]} 55. Qc8+ {[%emt 0:00:08]} Kd5 {[%emt 0:00:20]} 56. Qd7+ {[%emt 0:00:23]} Ke4 {[%emt 0:00:17]} 57. Qe6+ {[%emt 0:00:10]} Kf3 {[%emt 0:00:04]} 58. Qxe2+ {[%emt 0:00:06]} Kxe2 {[%emt 0:00:05]} 59. f8=Q {[%emt 0:00:06]} d3 {[%emt 0:00:06]} 60. cxd3 {[%emt 0:00:13]} Kxd3 {[%emt 0:00:11]} 61. g7 {[%emt 0:00:04]} 1-0

[Event "WYCC 2018 G14"]
[Site "Halkidiki"]
[Date "2018.10.27"]
[Round "8"]
[White "Tamrazyan, Gohar"]
[Black "Vuong, Quynh Anh"]
[Result "0-1"]
[ECO "A05"]
[WhiteElo "1824"]
[BlackElo "1747"]
[Annotator "NA"]
[PlyCount "102"]
[EventDate "2018.10.20"]
[EventType "swiss"]
[EventCountry "GRE"]
[SourceTitle "playchess.com"]
[Source "ChessBase"]
[SourceQuality "1"]
[TimeControl "40/5400+30:1800+30"]

1. Nf3 {[%emt 0:00:00]} Nf6 {[%emt 0:00:00]} 2. e3 {[%emt 0:00:00]} g6 {[%emt 0:00:04]} 3. b4 {[%emt 0:00:00]} Bg7 {[%emt 0:00:34]} 4. Bb2 {[%emt 0:00:00]} d5 {[%emt 0:00:21]} 5. c4 {[%emt 0:00:01]} Bf5 {[%emt 0:06:08]} 6. cxd5 {[%emt 0:03:01]} Qxd5 {[%emt 0:00:23]} 7. Nc3 {[%emt 0:00:35]} Qd8 {[%emt 0:00:18]} 8. Nd4 {[%emt 0:02:40]} Bg4 {[%emt 0:02:47]} 9. Be2 {[%emt 0:05:08]} Bxe2 {[%emt 0:00:16]} 10. Qxe2 {[%emt 0:00:16]} c6 {[%emt 0:01:05]} 11. O-O {[%emt 0:15:58]} O-O {[%emt 0:00:10]} 12. f4 {[%emt 0:03:24]} Qd6 {[%emt 0:04:47]} 13. a3 {[%emt 0:12:48]} e5 {[%emt 0:04:02]} 14. fxe5 {[%emt 0:01:14]} Qxe5 {[%emt 0:00:02]} 15. Nf3 {[%emt 0:01:35]} Qe7 {[%emt 0:00:10]} 16. d4 {[%emt 0:04:15]} Ne4 {[%emt 0:06:39]} 17. Nxe4 {[%emt 0:06:28]} Qxe4 {[%emt 0:00:04]} 18. Nd2 {[%emt 0:01:44]} Qd5 {[%emt 0:06:44]} 19. Kh1 {[%emt 0:06:50]} Qd6 {[%emt 0:02:08]} 20. Nc4 {[%emt 0:02:41]} Qe7 {[%emt 0:03:20]} 21. e4 {[%emt 0:05:23]} Nd7 {[%emt 0:02:52]} 22. Rae1 {[%emt 0:03:52]} Nb6 {[%emt 0:01:43]} 23. Nxb6 {[%emt 0:03:11]} axb6 {[%emt 0:00:01]} 24. e5 {[%emt 0:00:58]} Rad8 {[%emt 0:00:41]} 25. Qc4 {[%emt 0:03:24]} Rd5 {[%emt 0:00:38]} 26. Qb3 {[%emt 0:10:55]} Rfd8 {[%emt 0:01:00]} 27. Re3 {[%emt 0:02:33]} R8d7 {[%emt 0:00:52]} 28. Rfe1 {[%emt 0:02:20]} Qe6 {[%emt 0:00:48]} 29. Qc2 {[%emt 0:01:05]} Re7 {[%emt 0:04:31]} 30. Qc3 {[%emt 0:01:20]} Qd7 {[%emt 0:01:07]} 31. Rf1 {[%emt 0:00:19]} Qc7 {[%emt 0:02:36]} 32. Qb3 {[%emt 0:00:44]} Qd8 {[%emt 0:00:38]} 33. Ref3 {[%emt 0:00:24]} Red7 {[%emt 0:00:57]} 34. Qe3 {[%emt 0:00:31]} Qe8 {[%emt 0:00:29]} 35. Qf2 {[%emt 0:00:20]} c5 {[%emt 0:01:00]} 36. bxc5 {[%emt 0:00:32]} bxc5 {[%emt 0:00:03]} 37. Rd1 {[%emt 0:01:00]} cxd4 {[%emt 0:01:26]} 38. Bxd4 {[%emt 0:00:27]} Bxe5 {[%emt 0:01:57]} 39. Rfd3 {[%emt 0:00:09]} Bxd4 {[%emt 0:01:47]} 40. Rxd4 {[%emt 0:00:00]} Rxd4 {[%emt 0:00:00]} 41. Rxd4 {[%emt 0:00:18]} Rxd4 {[%emt 0:00:12]} 42. Qxd4 {[%emt 0:00:05]} Qe1+ {[%emt 0:00:04]} 43. Qg1 {[%emt 0:00:05]} Qxg1+ {[%emt 0:00:18]} 44. Kxg1 {[%emt 0:00:03]} f5 {[%emt 0:00:38]} 45. Kf2 {[%emt 0:00:21]} Kf7 {[%emt 0:00:06]} 46. Ke3 {[%emt 0:04:29]} Ke6 {[%emt 0:00:08]} 47. Kf4 {[%emt 0:04:36]} Kf6 {[%emt 0:00:04]} 48. h3 {[%emt 0:01:56]} g5+ {[%emt 0:00:07]} 49. Kf3 {[%emt 0:02:43]} Ke5 {[%emt 0:00:09]} 50. g3 {[%emt 0:01:02]} Kd4 {[%emt 0:00:05]} 51. h4 {[%emt 0:01:38]} h6 {[%emt 0:00:02]} 0-1

[Event "WYCC 2018 G14"]
[Site "Halkidiki"]
[Date "2018.10.27"]
[Round "8"]
[White "Brunner, Sophia"]
[Black "Toncheva, Nadya"]
[Result "1/2-1/2"]
[ECO "D20"]
[WhiteElo "1812"]
[BlackElo "2002"]
[Annotator "NA"]
[PlyCount "77"]
[EventDate "2018.10.20"]
[EventType "swiss"]
[EventCountry "GRE"]
[SourceTitle "playchess.com"]
[Source "ChessBase"]
[SourceQuality "1"]
[TimeControl "40/5400+30:1800+30"]

1. d4 {[%emt 0:00:00]} d5 {[%emt 0:00:00]} 2. c4 {[%emt 0:00:00]} dxc4 {[%emt 0:00:00]} 3. e4 {[%emt 0:00:00]} e5 {[%emt 0:00:00]} 4. Nf3 {[%emt 0:00:00]} Bb4+ {[%emt 0:00:00]} 5. Bd2 {[%emt 0:06:58]} Bxd2+ {[%emt 0:00:00]} 6. Qxd2 {[%emt 0:03:09]} exd4 {[%emt 0:03:19]} 7. Bxc4 {[%emt 0:09:26]} Nc6 {[%emt 0:00:17]} 8. O-O {[%emt 0:03:46]} Nge7 {[%emt 0:02:33]} 9. Na3 {[%emt 0:01:34]} Bg4 {[%emt 0:05:13]} 10. Bxf7+ Kxf7 {[%emt 0:00:04]} 11. Qf4+ {[%emt 0:03:02]} Bf5 12. exf5 {[%emt 0:00:46]} h6 {[%emt 0:04:37]} 13. Rad1 {[%emt 0:13:25]} Nd5 {[%emt 0:14:34]} 14. Qg4 {[%emt 0:05:46]} Rf8 {[%emt 0:01:15]} 15. Nxd4 {[%emt 0:01:25]} Nxd4 {[%emt 0:00:22]} 16. Rxd4 {[%emt 0:01:18]} c6 {[%emt 0:00:15]} 17. Nc4 {[%emt 0:06:43]} Qc7 {[%emt 0:12:50]} 18. Re1 {[%emt 0:04:01]} Kg8 {[%emt 0:04:21]} 19. a3 {[%emt 0:09:55]} b5 {[%emt 0:07:24]} 20. Ne3 {[%emt 0:01:21]} Rae8 {[%emt 0:01:07]} 21. Red1 {[%emt 0:08:53]} Nxe3 {[%emt 0:04:16]} 22. fxe3 {[%emt 0:00:06]} Qe5 {[%emt 0:09:27]} 23. e4 {[%emt 0:04:59]} Re7 {[%emt 0:06:18]} 24. R1d2 {[%emt 0:03:06]} a5 {[%emt 0:02:41]} 25. Qg3 {[%emt 0:04:35]} Qc5 {[%emt 0:03:10]} 26. Qc3 {[%emt 0:04:11]} Qb6 {[%emt 0:01:15]} 27. Kf1 {[%emt 0:01:52]} Qc7 {[%emt 0:06:26]} 28. g3 {[%emt 0:01:00]} Rfe8 {[%emt 0:01:33]} 29. Rd6 {[%emt 0:01:28]} Rxe4 {[%emt 0:02:18]} 30. Qxc6 {[%emt 0:01:04]} Re1+ {[%emt 0:01:49]} 31. Kf2 {[%emt 0:00:19]} Qa7+ {[%emt 0:00:40]} 32. Qb6 {[%emt 0:00:15]} Qe7 {[%emt 0:01:55]} 33. Re6 Rxe6 {[%emt 0:00:09]} 34. fxe6 {[%emt 0:01:11]} Qf6+ {[%emt 0:01:54]} 35. Kg2 {[%emt 0:00:44]} Qxe6 {[%emt 0:01:57]} 36. Qxe6+ {[%emt 0:00:32]} Rxe6 {[%emt 0:00:04]} 37. Kf3 {[%emt 0:00:23]} Kf7 {[%emt 0:00:24]} 38. Rd5 {[%emt 0:00:29]} Rb6 {[%emt 0:00:05]} 39. Ke4 {[%emt 0:00:39]} 1/2-1/2

[Event "WYCC 2018 G14"]
[Site "Halkidiki"]
[Date "2018.10.27"]
[Round "8"]
[White "Kouta, Antonia"]
[Black "Zaritovskaja, Margarita"]
[Result "1/2-1/2"]
[ECO "B54"]
[WhiteElo "1812"]
[BlackElo "1731"]
[Annotator "NA"]
[PlyCount "86"]
[EventDate "2018.10.20"]
[EventType "swiss"]
[EventCountry "GRE"]
[SourceTitle "playchess.com"]
[Source "ChessBase"]
[SourceQuality "1"]
[TimeControl "40/5400+30:1800+30"]

1. e4 {[%emt 0:00:00]} c5 {[%emt 0:00:00]} 2. Nf3 {[%emt 0:00:00]} d6 {[%emt 0:00:00]} 3. d4 cxd4 {[%emt 0:00:00]} 4. Nxd4 {[%emt 0:00:00]} Nf6 {[%emt 0:00:00]} 5. f3 {[%emt 0:00:17]} a6 {[%emt 0:00:35]} 6. c4 {[%emt 0:00:40]} e6 {[%emt 0:00:50]} 7. Nc3 {[%emt 0:00:49]} Be7 {[%emt 0:01:03]} 8. Be3 {[%emt 0:00:16]} Nc6 {[%emt 0:01:08]} 9. Be2 {[%emt 0:00:55]} O-O {[%emt 0:01:32]} 10. O-O {[%emt 0:01:16]} Bd7 {[%emt 0:07:26]} 11. Qd2 {[%emt 0:04:07]} Rc8 {[%emt 0:08:32]} 12. Rfc1 {[%emt 0:10:46]} Nxd4 {[%emt 0:03:33]} 13. Bxd4 {[%emt 0:03:34]} Bc6 {[%emt 0:00:40]} 14. b4 {[%emt 0:04:51]} b6 {[%emt 0:12:00]} 15. a4 {[%emt 0:10:26]} Bb7 {[%emt 0:09:07]} 16. Rcb1 {[%emt 0:08:51]} d5 {[%emt 0:04:55]} 17. e5 {[%emt 0:11:58]} Nd7 {[%emt 0:01:21]} 18. cxd5 {[%emt 0:00:37]} exd5 {[%emt 0:00:27]} 19. f4 {[%emt 0:01:23]} Qc7 {[%emt 0:09:10]} 20. Bg4 {[%emt 0:08:26]} Rcd8 {[%emt 0:05:56]} 21. Qe3 {[%emt 0:05:17]} Bc5 {[%emt 0:09:26]} 22. Ne2 {[%emt 0:04:59]} Bxd4 {[%emt 0:02:18]} 23. Nxd4 {[%emt 0:00:15]} Rfe8 {[%emt 0:03:42]} 24. Qh3 {[%emt 0:03:49]} Nf8 {[%emt 0:06:36]} 25. Rc1 {[%emt 0:05:03]} Qe7 {[%emt 0:04:17]} 26. Rab1 {[%emt 0:01:07]} g6 {[%emt 0:00:55]} 27. Nc6 {[%emt 0:10:04]} Bxc6 {[%emt 0:00:35]} 28. Rxc6 {[%emt 0:00:04]} h5 {[%emt 0:01:51]} 29. Be2 {[%emt 0:01:17]} Ne6 {[%emt 0:01:13]} 30. Qe3 {[%emt 0:01:44]} d4 {[%emt 0:01:22]} 31. Qe4 {[%emt 0:01:19]} d3 {[%emt 0:00:38]} 32. Bxd3 {[%emt 0:00:39]} Nxf4 {[%emt 0:00:23]} 33. Qxf4 {[%emt 0:00:13]} Rxd3 {[%emt 0:00:04]} 34. Rf1 {[%emt 0:00:41]} Rd7 {[%emt 0:00:45]} 35. Re1 {[%emt 0:00:53]} Rc7 {[%emt 0:02:35]} 36. Rxb6 {[%emt 0:00:26]} Rb7 {[%emt 0:00:28]} 37. Rxb7 {[%emt 0:00:49]} Qxb7 {[%emt 0:00:04]} 38. a5 {[%emt 0:00:31]} Qd5 {[%emt 0:00:39]} 39. h3 {[%emt 0:00:31]} Qe6 {[%emt 0:01:08]} 40. Rf1 {[%emt 0:00:00]} Re7 {[%emt 0:00:00]} 41. Qf6 {[%emt 0:11:42]} Qxe5 {[%emt 0:04:11]} 42. Qxe5 {[%emt 0:01:59]} Rxe5 {[%emt 0:00:09]} 43. Kf2 {[%emt 0:00:37]} Rb5 1/2-1/2

[Event "WYCC 2018 G14"]
[Site "Halkidiki"]
[Date "2018.10.27"]
[Round "8"]
[White "Sleurs, Juliette"]
[Black "Ziegenfuss, Antonia"]
[Result "0-1"]
[ECO "B40"]
[WhiteElo "1812"]
[BlackElo "1969"]
[Annotator "NA"]
[PlyCount "60"]
[EventDate "2018.10.20"]
[EventType "swiss"]
[EventCountry "GRE"]
[SourceTitle "playchess.com"]
[Source "ChessBase"]
[SourceQuality "1"]
[TimeControl "40/5400+30:1800+30"]

1. e4 {[%emt 0:00:00]} c5 {[%emt 0:00:00]} 2. Nf3 {[%emt 0:00:00]} e6 {[%emt 0:00:00]} 3. d3 {[%emt 0:00:00]} Nc6 {[%emt 0:00:00]} 4. Nbd2 {[%emt 0:00:00]} Nf6 {[%emt 0:00:11]} 5. g3 {[%emt 0:00:00]} d5 {[%emt 0:00:18]} 6. Bg2 {[%emt 0:00:07]} Be7 {[%emt 0:00:18]} 7. O-O {[%emt 0:00:14]} b6 {[%emt 0:00:19]} 8. Re1 {[%emt 0:00:16]} Bb7 {[%emt 0:00:09]} 9. c3 {[%emt 0:00:46]} h6 {[%emt 0:04:31]} 10. h4 {[%emt 0:01:07]} Qc7 {[%emt 0:02:29]} 11. a3 {[%emt 0:01:45]} dxe4 {[%emt 0:01:18]} 12. dxe4 {[%emt 0:00:15]} Nd7 {[%emt 0:00:20]} 13. Qe2 {[%emt 0:05:47]} O-O {[%emt 0:08:36]} 14. Nf1 {[%emt 0:07:09]} Rfd8 {[%emt 0:06:15]} 15. e5 {[%emt 0:03:26]} a5 {[%emt 0:03:34]} 16. Bf4 {[%emt 0:02:44]} Ba6 {[%emt 0:07:08]} 17. Qc2 {[%emt 0:05:12]} Rac8 {[%emt 0:18:13]} 18. Ne3 {[%emt 0:04:15]} c4 {[%emt 0:07:12]} 19. Nf5 {[%emt 0:06:49]} Nc5 {[%emt 0:07:30]} 20. Nxe7+ {[%emt 0:05:40]} Nxe7 {[%emt 0:02:19]} 21. Be3 {[%emt 0:10:22]} Nd3 {[%emt 0:03:48]} 22. Re2 {[%emt 0:01:06]} Bb7 {[%emt 0:04:01]} 23. Ne1 {[%emt 0:05:25]} Bxg2 {[%emt 0:05:50]} 24. Kxg2 {[%emt 0:00:26]} Qb7+ {[%emt 0:04:05]} 25. Kh2 {[%emt 0:01:15]} Nxe5 {[%emt 0:02:23]} 26. Bxb6 {[%emt 0:08:06]} Ng4+ {[%emt 0:00:11]} 27. Kh3 {[%emt 0:00:17]} Qh1+ {[%emt 0:01:06]} 28. Kxg4 {[%emt 0:00:14]} f5+ {[%emt 0:01:03]} 29. Kh5 {[%emt 0:07:42]} Qh3 {[%emt 0:01:58]} 30. Re4 {[%emt 0:04:35]} Kh7 {[%emt 0:01:11]} 0-1

[Event "WYCC 2018 G14"]
[Site "Halkidiki"]
[Date "2018.10.27"]
[Round "8"]
[White "Obada, Ema"]
[Black "Maciulaityte, Barbora"]
[Result "1/2-1/2"]
[ECO "B23"]
[WhiteElo "1811"]
[BlackElo "1715"]
[Annotator "NA"]
[PlyCount "97"]
[EventDate "2018.10.20"]
[EventType "swiss"]
[EventCountry "GRE"]
[SourceTitle "playchess.com"]
[Source "ChessBase"]
[SourceQuality "1"]
[TimeControl "40/5400+30:1800+30"]

1. e4 {[%emt 0:00:00]} c5 {[%emt 0:00:00]} 2. Nc3 {[%emt 0:00:00]} d6 {[%emt 0:00:00]} 3. Bb5+ {[%emt 0:00:00]} Bd7 {[%emt 0:00:00]} 4. a4 {[%emt 0:00:00]} Nc6 {[%emt 0:02:59]} 5. d3 {[%emt 0:00:08]} g6 {[%emt 0:00:38]} 6. f4 {[%emt 0:00:46]} Bg7 {[%emt 0:02:17]} 7. Nf3 {[%emt 0:00:26]} e6 {[%emt 0:01:09]} 8. O-O {[%emt 0:01:51]} Nge7 {[%emt 0:00:22]} 9. Be3 {[%emt 0:03:46]} a6 {[%emt 0:01:33]} 10. Bc4 {[%emt 0:03:39]} O-O {[%emt 0:03:54]} 11. d4 {[%emt 0:06:03]} cxd4 {[%emt 0:06:12]} 12. Nxd4 {[%emt 0:00:44]} Qb6 {[%emt 0:09:04]} 13. Nce2 {[%emt 0:02:53]} Nxd4 {[%emt 0:12:11]} 14. Bxd4 {[%emt 0:03:18]} Bxd4+ {[%emt 0:00:20]} 15. Qxd4 {[%emt 0:00:24]} Qxd4+ {[%emt 0:01:14]} 16. Nxd4 {[%emt 0:00:06]} Rac8 {[%emt 0:01:02]} 17. Bb3 {[%emt 0:04:45]} Nc6 {[%emt 0:02:54]} 18. Nxc6 {[%emt 0:12:45]} Bxc6 {[%emt 0:00:50]} 19. Rfe1 {[%emt 0:02:06]} Rfd8 {[%emt 0:00:50]} 20. Rad1 {[%emt 0:04:36]} Kf8 {[%emt 0:04:48]} 21. Rd3 {[%emt 0:08:03]} d5 {[%emt 0:08:50]} 22. e5 {[%emt 0:01:02]} h5 {[%emt 0:02:08]} 23. Rd4 {[%emt 0:00:20]} Rd7 {[%emt 0:04:06]} 24. Kf2 {[%emt 0:01:42]} Rdc7 {[%emt 0:01:59]} 25. Ke3 {[%emt 0:03:58]} b5 {[%emt 0:03:56]} 26. a5 {[%emt 0:02:34]} Bb7 {[%emt 0:03:11]} 27. g3 {[%emt 0:00:53]} Rc5 {[%emt 0:01:55]} 28. h3 {[%emt 0:02:39]} Ke7 {[%emt 0:01:24]} 29. Rg1 {[%emt 0:05:51]} Rh8 {[%emt 0:02:05]} 30. Rf1 {[%emt 0:05:06]} Ba8 {[%emt 0:02:15]} 31. c3 {[%emt 0:03:54]} Rcc8 {[%emt 0:01:17]} 32. Kf3 {[%emt 0:02:59]} Rcg8 {[%emt 0:03:02]} 33. Ke3 {[%emt 0:00:43]} Rc8 {[%emt 0:00:13]} 34. Rf2 {[%emt 0:02:30]} Bc6 {[%emt 0:02:52]} 35. Bc2 {[%emt 0:01:44]} Bb7 {[%emt 0:03:13]} 36. Rd1 {[%emt 0:02:12]} Rc4 {[%emt 0:04:01]} 37. Bd3 {[%emt 0:00:06]} Rcc8 {[%emt 0:03:29]} 38. Be2 {[%emt 0:02:44]} Rb8 {[%emt 0:01:33]} 39. Rd4 {[%emt 0:00:47]} Rbc8 {[%emt 0:00:54]} 40. Bf1 {[%emt 0:00:00]} Kd7 {[%emt 0:00:00]} 41. g4 {[%emt 0:02:06]} hxg4 {[%emt 0:04:01]} 42. hxg4 {[%emt 0:00:05]} Ke7 {[%emt 0:04:03]} 43. f5 {[%emt 0:01:13]} gxf5 {[%emt 0:02:12]} 44. gxf5 {[%emt 0:00:05]} Rh5 {[%emt 0:00:07]} 45. Rdf4 {[%emt 0:02:36]} Rf8 {[%emt 0:01:19]} 46. Kd4 {[%emt 0:04:44]} Bc8 {[%emt 0:06:11]} 47. fxe6 {[%emt 0:01:26]} Bxe6 {[%emt 0:00:08]} 48. Bd3 {[%emt 0:07:00]} Rc8 {[%emt 0:01:51]} 49. Be2 {[%emt 0:03:46]} 1/2-1/2

[Event "WYCC 2018 G14"]
[Site "Halkidiki"]
[Date "2018.10.27"]
[Round "8"]
[White "Jaufarally, Nadia"]
[Black "He, Emma"]
[Result "1-0"]
[ECO "C50"]
[WhiteElo "1810"]
[BlackElo "1674"]
[Annotator "NA"]
[PlyCount "133"]
[EventDate "2018.10.20"]
[EventType "swiss"]
[EventCountry "GRE"]
[SourceTitle "playchess.com"]
[Source "ChessBase"]
[SourceQuality "1"]
[TimeControl "40/5400+30:1800+30"]

1. e4 {[%emt 0:00:00]} e5 {[%emt 0:00:00]} 2. Nf3 {[%emt 0:00:00]} Nc6 {[%emt 0:00:00]} 3. Bc4 {[%emt 0:00:00]} Nf6 {[%emt 0:00:00]} 4. d3 {[%emt 0:00:05]} Bc5 {[%emt 0:00:00]} 5. O-O {[%emt 0:00:15]} a6 {[%emt 0:00:29]} 6. c3 {[%emt 0:00:14]} d6 {[%emt 0:00:17]} 7. h3 h6 {[%emt 0:00:27]} 8. Re1 {[%emt 0:01:35]} O-O {[%emt 0:00:50]} 9. Bb3 {[%emt 0:02:04]} Be6 {[%emt 0:03:25]} 10. Nbd2 {[%emt 0:08:08]} Ba7 {[%emt 0:02:01]} 11. Nf1 {[%emt 0:01:31]} Ne7 {[%emt 0:02:19]} 12. Ng3 {[%emt 0:03:03]} Ng6 {[%emt 0:01:48]} 13. Be3 {[%emt 0:03:30]} Re8 {[%emt 0:09:05]} 14. Bxa7 {[%emt 0:07:10]} Rxa7 {[%emt 0:00:30]} 15. d4 {[%emt 0:00:44]} Ra8 {[%emt 0:09:59]} 16. Qc2 {[%emt 0:06:01]} Nh7 {[%emt 0:03:59]} 17. Rad1 {[%emt 0:03:08]} Ng5 {[%emt 0:02:53]} 18. Re3 {[%emt 0:09:01]} Qf6 {[%emt 0:06:49]} 19. Bxe6 {[%emt 0:12:15]} fxe6 {[%emt 0:07:04]} 20. Ne2 {[%emt 0:02:29]} Rf8 {[%emt 0:05:18]} 21. Rf1 Nf4 {[%emt 0:01:16]} 22. Nxf4 {[%emt 0:09:03]} exf4 {[%emt 0:03:37]} 23. Ree1 {[%emt 0:00:53]} Nxf3+ {[%emt 0:01:34]} 24. gxf3 {[%emt 0:00:32]} Qh4 25. Kh2 Kh8 {[%emt 0:02:48]} 26. Rg1 {[%emt 0:01:10]} h5 {[%emt 0:02:33]} 27. Rg2 {[%emt 0:04:48]} g5 {[%emt 0:02:56]} 28. Reg1 {[%emt 0:00:31]} Rg8 {[%emt 0:00:27]} 29. Qa4 {[%emt 0:09:50]} Rg6 30. Qd7 {[%emt 0:01:18]} Rag8 {[%emt 0:07:46]} 31. Qe7 {[%emt 0:01:32]} R8g7 {[%emt 0:09:56]} 32. Qd8+ {[%emt 0:01:10]} Kh7 {[%emt 0:00:33]} 33. Rh1 {[%emt 0:03:22]} Rf7 {[%emt 0:04:49]} 34. Qe8 {[%emt 0:03:19]} Rgg7 {[%emt 0:02:37]} 35. Kg1 {[%emt 0:03:39]} Re7 {[%emt 0:01:34]} 36. Qb8 {[%emt 0:03:31]} d5 {[%emt 0:07:03]} 37. Qxb7 {[%emt 0:01:34]} c5 {[%emt 0:00:43]} 38. Qb6 {[%emt 0:00:54]} dxe4 {[%emt 0:00:32]} 39. Rg4 {[%emt 0:00:23]} hxg4 {[%emt 0:00:58]} 40. hxg4 {[%emt 0:00:00]} Qxh1+ {[%emt 0:00:00]} 41. Kxh1 {[%emt 0:00:07]} e3 {[%emt 0:03:02]} 42. Qxc5 {[%emt 0:17:06]} exf2 {[%emt 0:03:24]} 43. Kg2 {[%emt 0:00:12]} Rb7 {[%emt 0:00:19]} 44. b3 {[%emt 0:00:59]} Rbc7 {[%emt 0:02:45]} 45. Qe5 {[%emt 0:08:13]} Rxc3 {[%emt 0:02:41]} 46. Qxe6 {[%emt 0:00:25]} Rgc7 {[%emt 0:05:30]} 47. Qf5+ {[%emt 0:02:11]} Kh6 {[%emt 0:00:34]} 48. Kxf2 {[%emt 0:01:05]} Rc2+ {[%emt 0:05:33]} 49. Ke1 {[%emt 0:00:09]} Rxa2 {[%emt 0:01:08]} 50. Kd1 {[%emt 0:01:04]} Rc3 {[%emt 0:02:51]} 51. Qf6+ {[%emt 0:00:11]} Kh7 {[%emt 0:00:03]} 52. Qf7+ {[%emt 0:00:08]} Kh6 {[%emt 0:00:49]} 53. Qh5+ {[%emt 0:00:03]} Kg7 {[%emt 0:00:11]} 54. Qxg5+ {[%emt 0:00:02]} Kh7 {[%emt 0:00:55]} 55. Qxf4 {[%emt 0:00:43]} Ra1+ {[%emt 0:01:08]} 56. Kd2 {[%emt 0:00:07]} Rac1 {[%emt 0:00:09]} 57. Qf7+ {[%emt 0:00:21]} Kh8 {[%emt 0:00:16]} 58. Qf8+ {[%emt 0:00:43]} Kh7 {[%emt 0:00:04]} 59. Qf5+ {[%emt 0:00:05]} Kh8 {[%emt 0:00:30]} 60. g5 {[%emt 0:00:08]} Rc7 {[%emt 0:00:07]} 61. f4 {[%emt 0:02:12]} R1c6 {[%emt 0:00:32]} 62. d5 {[%emt 0:00:47]} Rc5 {[%emt 0:00:35]} 63. Qe5+ {[%emt 0:01:41]} Kh7 {[%emt 0:00:14]} 64. Qe4+ {[%emt 0:00:04]} Kh8 {[%emt 0:00:07]} 65. f5 {[%emt 0:00:13]} a5 {[%emt 0:00:22]} 66. g6 {[%emt 0:00:38]} a4 {[%emt 0:00:11]} 67. f6 {[%emt 0:00:21]} 1-0